bitfinex/quotes_SOLUSD_20260115
["timestamp","ask_amount","ask_price","bid_price","bid_amount"]
[1768490359257,0.89053961,143.86,143.8,24.33921217]
[1768490359443,0.79053961,143.85,143.81,12.68]
[1768490359648,0.79053961,143.84,143.81,12.68]
[1768490359858,0.79053961,143.84,143.78,6.95490148]
[1768490360055,0.79053961,143.84,143.78,26.26571426]
[1768490360451,0.79053961,143.81,143.75,6.63081278]
[1768490360648,0.69540705,143.79,143.73,6.63081278]
[1768490361254,0.69540705,143.79,143.71,12.68]
[1768490361445,0.69540705,143.79,143.73,6.63081278]
[1768490361665,6.95507024,143.78,143.73,6.63081278]
[1768490361956,0.69540705,143.77,143.73,6.63081278]
[1768490363157,0.69540705,143.77,143.72,6.63081278]
[1768490363668,7.65144489,143.76,143.71,19.63841429]
[1768490363964,7.65113498,143.77,143.72,6.63081278]
[1768490364356,0.7292969,143.75,143.69,6.95934517]
[1768490364663,0.7292969,143.74,143.69,26.27015795]
[1768490365064,0.7292969,143.74,143.7,6.63081278]
[1768490365244,0.7292969,143.74,143.69,26.27015795]
[1768490365445,0.7292969,143.76,143.71,6.95839309]
[1768490365645,0.7292969,143.77,143.72,13.58843819]
[1768490365949,30.06646542,143.8,143.75,6.63081278]
[1768490365950,0.7292969,143.8,143.75,6.63081278]
[1768490366766,0.7292969,143.8,143.76,6.63081278]
[1768490367476,6.95448576,143.8,143.76,6.63081278]
[1768490367765,0.7292969,143.79,143.76,6.63081278]
[1768490367956,0.7292969,143.79,143.75,13.58732271]
[1768490368157,0.7292969,143.77,143.72,30.07493459]
[1768490368558,0.7292969,143.76,143.72,26.2687665]
[1768490368756,0.7292969,143.75,143.7,13.58941679]
[1768490368956,0.7292969,143.75,143.7,26.26941679]
[1768490369359,0.7292969,143.75,143.7,19.63860401]
[1768490369544,0.7292969,143.75,143.71,6.63081278]
[1768490369743,0.7292969,143.74,143.7,26.26941679]
[1768490369959,0.7292969,143.74,143.71,6.63081278]
[1768490371647,0.7292969,143.72,143.66,6.96075567]
[1768490371852,0.7292969,143.72,143.58,0.2]
[1768490371853,0.7292969,143.7,143.62,17.40666846]
[1768490372174,0.7292969,143.69,143.64,6.63081278]
[1768490372474,0.7292969,143.69,143.65,6.63081278]
[1768490372673,0.7292969,143.69,143.63,12.68]
[1768490372858,6.63081278,143.7,143.59,3.63110407]
[1768490372859,0.7292969,143.66,143.61,6.63081278]
[1768490373059,7.36010968,143.65,143.6,13.59421616]
[1768490373372,7.69118427,143.64,143.59,26.27494694]
[1768490373875,0.7292969,143.64,143.6,6.96376353]
[1768490374054,0.7292969,143.64,143.6,13.59457631]
[1768490374378,0.7292969,143.63,143.59,19.64411046]
[1768490374756,0.7292969,143.63,143.59,26.27492324]
[1768490375272,0.7292969,143.62,143.58,7.16471536]
[1768490375463,0.7292969,143.62,143.58,26.47552814]
[1768490375770,0.7292969,143.62,143.59,6.96426029]
[1768490375978,0.7292969,143.62,143.59,13.59507307]
[1768490376480,0.7292969,143.62,143.58,19.51081278]
[1768490376861,0.7292969,143.62,143.58,12.88]
[1768490377063,0.7292969,143.61,143.58,0.2]
[1768490377378,7.6930852,143.6,143.58,0.2]
[1768490377677,0.7292969,143.6,143.58,0.2]
[1768490378278,0.7292969,143.62,143.59,6.63081278]
[1768490378662,6.96216135,143.64,143.61,6.63081278]
[1768490378879,7.69145825,143.64,143.61,6.63081278]
[1768490379182,7.69145825,143.64,143.6,6.63081278]
[1768490379379,0.7292969,143.66,143.63,6.63081278]
[1768490379576,0.7292969,143.66,143.62,6.63081278]
[1768490379990,0.7292969,143.66,143.63,6.63081278]
[1768490380158,0.7292969,143.68,143.64,6.63081278]
[1768490380358,0.7292969,143.68,143.65,6.63081278]
[1768490380574,0.7292969,143.7,143.67,6.63081278]
[1768490380788,0.7292969,143.7,143.66,6.63081278]
[1768490381078,19.33081278,143.72,143.61,24.37156186]
[1768490381079,0.7292969,143.71,143.61,24.37156186]
[1768490381376,0.7292969,143.69,143.65,6.63081278]
[1768490381765,0.7292969,143.69,143.65,13.59204619]
[1768490381970,7.68791592,143.71,143.66,13.59163408]
[1768490382173,0.7292969,143.71,143.67,6.63081278]
[1768490382373,0.7292969,143.71,143.66,24.36302093]
[1768490382571,0.7292969,143.71,143.67,6.63081278]
[1768490382960,6.95851117,143.71,143.66,13.59163408]
[1768490383166,0.7292969,143.7,143.66,13.59163408]
[1768490383374,0.7292969,143.7,143.67,6.63081278]
[1768490384215,7.68738703,143.72,143.67,6.63081278]
[1768490384362,7.68738703,143.72,143.68,6.63081278]
[1768490384363,0.7292969,143.72,143.68,6.63081278]
[1768490385390,0.7292969,143.72,143.68,13.59066368]
[1768490385684,0.7292969,143.71,143.67,13.59113191]
[1768490386270,0.7292969,143.76,143.7,6.63081278]
[1768490386468,0.7292969,143.76,143.68,6.95988011]
[1768490386469,0.7292969,143.76,143.74,3.62981274]
[1768490386669,0.7292969,143.76,143.74,3.59981275]
[1768490386864,0.7292969,143.78,143.74,10.23062553]
[1768490387064,0.7292969,143.78,143.75,6.63081278]
[1768490387589,0.7292969,143.78,143.74,3.59981275]
[1768490387790,0.7292969,143.78,143.75,6.63081278]
[1768490387996,0.7292969,143.78,143.75,13.58723088]
[1768490389090,0.7292969,143.77,143.74,3.59981275]
[1768490389496,7.68486138,143.77,143.74,3.59981275]
[1768490390381,0.7292969,143.76,143.74,3.59981275]
[1768490390585,13.58637726,143.77,143.74,0.66920847]
[1768490390795,30.97526228,143.77,143.74,0.63920848]
[1768490390974,30.97526228,143.77,143.7,7.62469109]
[1768490390975,24.3444495,143.77,143.71,6.9582508]
[1768490391291,30.97526228,143.77,143.72,0.68502006]
[1768490391708,30.97526228,143.77,143.71,13.58906358]
[1768490391870,6.77297435,143.76,143.71,0.68502006]
[1768490392067,0.14216157,143.76,143.71,0.68502006]
[1768490392275,6.77297435,143.76,143.71,0.68502006]
[1768490392793,6.63081278,143.75,143.69,12.7]
[1768490392991,6.63081278,143.75,143.7,0.68502006]
[1768490393696,6.95652173,143.75,143.7,14.27472372]
[1768490394068,6.95652173,143.75,143.7,7.64391094]
[1768490394276,6.95652173,143.75,143.7,14.27472372]
[1768490394998,6.95652173,143.75,143.7,7.31583284]
[1768490395582,13.58733451,143.75,143.69,19.65926932]
[1768490395775,13.58733451,143.75,143.69,26.2900821]
[1768490395976,13.58733451,143.75,143.69,26.97510216]
[1768490397398,13.58733451,143.75,143.69,20.34428938]
[1768490397799,13.58733451,143.75,143.7,0.68502006]
[1768490398293,30.97863885,143.75,143.7,0.68502006]
[1768490398497,30.97863885,143.75,143.69,13.5900821]
[1768490399285,30.97863885,143.75,143.7,0.68502006]
[1768490400301,24.34782607,143.75,143.7,0.68502006]
[1768490400501,24.34782607,143.75,143.7,7.31583284]
[1768490400798,30.97863885,143.75,143.7,0.68502006]
[1768490401501,68.10143956,143.78,143.74,0.68502006]
[1768490401681,75.05662448,143.78,143.74,7.31583284]
[1768490401877,68.10143956,143.78,143.75,0.68502006]
[1768490402199,75.05679143,143.78,143.73,0.68502006]
[1768490402415,75.05679143,143.78,143.74,6.63081278]
[1768490402904,75.05679143,143.78,143.73,7.31583284]
[1768490403199,75.05679143,143.78,143.73,6.63081278]
[1768490403398,6.95603784,143.76,143.71,0.68502006]
[1768490403585,6.95567001,143.77,143.73,7.31583284]
[1768490404290,75.05667253,143.78,143.74,7.31583284]
[1768490404703,75.05667253,143.78,143.74,0.68502006]
[1768490405287,6.77297435,143.77,143.72,12.68]
[1768490405503,6.95603784,143.76,143.72,12.68]
[1768490405703,30.97694522,143.76,143.72,12.68]
[1768490406096,24.34613244,143.76,143.71,7.31583284]
[1768490406293,30.97694522,143.76,143.7,6.63081278]
[1768490406500,6.63081278,143.74,143.69,13.36502006]
[1768490406686,6.63081278,143.72,143.65,7.31583284]
[1768490406887,6.63081278,143.7,143.65,13.36502006]
[1768490407197,6.63081278,143.71,143.66,0.68502006]
[1768490407791,6.95862008,143.71,143.67,0.68502006]
[1768490408612,6.63081278,143.7,143.65,0.68502006]
[1768490408908,30.98557787,143.71,143.66,0.68502006]
[1768490409410,30.98557787,143.71,143.66,7.64578775]
[1768490409589,30.98557787,143.71,143.67,0.68502006]
[1768490410109,6.63081278,143.7,143.65,0.68502006]
[1768490410302,6.63081278,143.7,143.66,0.68502006]
[1768490410498,30.98557787,143.71,143.66,7.64587161]
[1768490410805,30.98557787,143.71,143.66,0.68502006]
[1768490411106,13.58943286,143.71,143.66,7.6458623]
[1768490411303,17.74959338,143.71,143.67,0.68502006]
[1768490411799,10.7909733,143.69,143.64,7.64658117]
[1768490412004,10.7909733,143.68,143.64,7.64658117]
[1768490412308,10.93313487,143.68,143.63,0.68502006]
[1768490412809,10.7909733,143.67,143.63,0.68502006]
[1768490413013,10.93313487,143.68,143.63,7.64727043]
[1768490413890,10.93313487,143.68,143.61,7.64796358]
[1768490413891,6.96136442,143.65,143.61,7.64796358]
[1768490414091,17.75233772,143.65,143.61,0.68502006]
[1768490414693,10.7909733,143.63,143.59,0.68502006]
[1768490414892,0.14216157,143.64,143.58,0.88502006]
[1768490414893,10.7909733,143.62,143.58,0.88502006]
[1768490415119,10.7909733,143.62,143.58,7.8497078]
[1768490415484,0.14216157,143.64,143.58,7.8497078]
[1768490415715,10.7909733,143.62,143.58,7.8497078]
[1768490415899,10.7909733,143.63,143.58,7.8497078]
[1768490416307,0.14216157,143.64,143.58,0.2]
[1768490416308,0.14216157,143.61,143.58,0.2]
[1768490416490,10.7909733,143.59,143.54,0.68502006]
[1768490416809,10.7909733,143.58,143.53,20.35213164]
[1768490416987,10.7909733,143.59,143.54,18.44260112]
[1768490417190,10.7909733,143.59,143.54,7.65162782]
[1768490417398,10.7909733,143.58,143.54,0.68502006]
[1768490418418,6.96524343,143.57,143.54,0.68502006]
[1768490418994,0.14216157,143.58,143.54,0.68502006]
[1768490419194,0.14216157,143.58,143.52,0.2]
[1768490419195,0.14216157,143.56,143.52,0.2]
[1768490419394,10.81252723,143.55,143.52,0.17844607]
[1768490419587,0.14216157,143.53,143.5,0.2]
[1768490419791,0.14216157,143.51,143.47,0.2]
[1768490420403,18.04408856,143.56,143.49,11.47599336]
[1768490420404,6.96669917,143.54,143.49,11.47599336]
[1768490420601,17.75767247,143.54,143.49,0.68502006]
[1768490420804,0.14216157,143.52,143.49,0.68502006]
[1768490420991,10.7909733,143.51,143.47,0.2]
[1768490421196,0.14216157,143.51,143.47,0.2]
[1768490421392,0.14216157,143.51,143.47,11.69966788]
[1768490421895,0.14216157,143.51,143.47,0.90869458]
[1768490422108,0.14216157,143.51,143.47,11.69966788]
[1768490422614,0.14216157,143.49,143.43,0.90869458]
[1768490422810,10.7909733,143.48,143.43,0.90869458]
[1768490423010,0.14216157,143.49,143.46,0.70869458]
[1768490423211,6.96830576,143.51,143.48,11.49966788]
[1768490423513,5.34408856,143.53,143.49,11.49966788]
[1768490423703,5.34408856,143.53,143.49,0.70869458]
[1768490423903,5.34408856,143.53,143.49,11.49966788]
[1768490424301,6.96330339,143.61,143.53,0.6768501]
[1768490424507,0.21324235,143.66,143.53,0.6768501]
[1768490424508,6.96524343,143.57,143.53,11.43782343]
[1768490424711,6.96427327,143.59,143.55,10.7909733]
[1768490425021,0.14216157,143.58,143.53,6.96715624]
[1768490425209,6.96427327,143.59,143.54,10.7909733]
[1768490425612,6.96427327,143.59,143.55,10.7909733]
[1768490426010,0.14216157,143.58,143.55,10.7909733]
[1768490426522,17.75524657,143.59,143.54,0.6768501]
[1768490426711,6.96427327,143.59,143.55,0.6768501]
[1768490427111,0.14216157,143.58,143.55,0.6768501]
[1768490427312,7.10722279,143.58,143.55,0.6768501]
[1768490427903,28.19847908,143.62,143.57,0.6768501]
[1768490428119,28.19847908,143.62,143.56,10.7909733]
[1768490428303,0.14216157,143.61,143.56,10.7909733]
[1768490428506,24.51372343,143.61,143.54,6.96658824]
[1768490428830,36.01333086,143.61,143.56,10.7909733]
[1768490429030,35.30469673,143.61,143.56,10.7909733]
[1768490429230,24.51372343,143.61,143.56,10.7909733]
[1768490429410,6.96330339,143.61,143.57,10.7909733]
[1768490429817,10.7909733,143.64,143.59,10.7909733]
[1768490430010,18.11233168,143.65,143.59,11.4678234]
[1768490430205,12.7,143.67,143.6,11.4678234]
[1768490430206,13.40863413,143.67,143.6,11.4678234]
[1768490430419,6.96087985,143.66,143.62,10.7909733]
[1768490430627,6.96087985,143.66,143.62,11.4678234]
[1768490430925,6.96087985,143.66,143.62,0.6768501]
[1768490431126,6.96087985,143.66,143.62,11.4678234]
[1768490431301,24.36170039,143.67,143.62,11.4678234]
[1768490431629,6.96039535,143.67,143.64,10.7909733]
[1768490431808,6.96039535,143.67,143.64,10.76097331]
[1768490432006,6.96039535,143.67,143.63,0.6768501]
[1768490432327,6.96039535,143.67,143.63,11.4678234]
[1768490433634,0.70863413,143.65,143.59,6.96424359]
[1768490433842,0.70863413,143.65,143.6,23.4909733]
[1768490434746,0.70863413,143.63,143.55,24.38174851]
[1768490435041,0.70863413,143.63,143.58,10.7909733]
[1768490435206,6.96184906,143.64,143.56,12.7]
[1768490435407,6.96184906,143.64,143.6,10.7909733]
[1768490435616,6.96151531,143.65,143.61,0.6768501]
[1768490436626,6.96151531,143.65,143.62,0.6768501]
[1768490436828,6.9609755,143.66,143.62,11.40782342]
[1768490437026,7.10267108,143.67,143.63,10.7909733]
[1768490437431,36.00326688,143.67,143.6,19.66366511]
[1768490437628,0.70863413,143.66,143.61,17.75417793]
[1768490437805,24.50365945,143.67,143.62,10.7909733]
[1768490438008,25.21229358,143.67,143.61,6.96320463]
[1768490438248,25.21229358,143.67,143.62,10.7909733]
[1768490438611,36.00326688,143.67,143.61,17.75417793]
[1768490439034,36.00326688,143.67,143.61,18.43102803]
[1768490439254,25.21229358,143.67,143.61,18.43102803]
[1768490439414,25.21229358,143.67,143.62,0.6768501]
[1768490439756,0.70863413,143.66,143.6,24.1678234]
[1768490440039,0.70863413,143.66,143.6,31.13129959]
[1768490440235,0.70863413,143.66,143.6,18.43129959]
[1768490440447,0.70863413,143.66,143.61,10.7909733]
[1768490440653,0.70863413,143.66,143.61,11.4678234]
[1768490441734,0.14216157,143.67,143.64,0.6768501]
[1768490441947,0.14216157,143.67,143.62,0.6768501]
[1768490442147,0.14216157,143.67,143.62,11.4678234]
[1768490442341,0.14216157,143.67,143.6,7.64053371]
[1768490442342,0.70863413,143.66,143.6,7.64053371]
[1768490442549,0.70863413,143.65,143.6,18.43150701]
[1768490443052,0.70863413,143.66,143.61,11.4678234]
[1768490443256,0.70863413,143.66,143.61,11.40782344]
[1768490443751,6.96184906,143.64,143.6,10.7909733]
[1768490444133,6.96184906,143.64,143.6,17.75475921]
[1768490445453,6.96184906,143.64,143.6,18.43160931]
[1768490446254,6.96154926,143.65,143.61,11.4678234]
[1768490446458,6.96154926,143.65,143.61,11.43782341]
[1768490446661,6.96154926,143.65,143.61,0.64685011]
[1768490446958,25.07359445,143.65,143.61,0.64685011]
[1768490447377,11.49960743,143.62,143.56,10.7909733]
[1768490447535,0.70863413,143.62,143.57,17.75608292]
[1768490448240,6.96299784,143.62,143.57,17.75608292]
[1768490448442,6.96299784,143.62,143.57,18.43293302]
[1768490448761,6.96299784,143.62,143.58,0.6768501]
[1768490449662,7.67163197,143.62,143.57,6.96510962]
[1768490449964,0.70863413,143.61,143.56,17.75658202]
[1768490450161,0.70863413,143.61,143.51,34.98231498]
[1768490450352,0.70863413,143.59,143.54,6.96641664]
[1768490450546,0.70863413,143.59,143.54,17.75738994]
[1768490450744,0.70863413,143.59,143.54,6.96641664]
[1768490451062,11.49944327,143.61,143.56,6.96569337]
[1768490451363,0.70846997,143.61,143.55,17.75699398]
[1768490451542,0.70846997,143.6,143.56,0.73214474]
[1768490451742,6.96399966,143.6,143.56,0.73214474]
[1768490452150,6.96399966,143.6,143.57,0.73214474]
[1768490452664,18.46344293,143.6,143.55,0.73214474]
[1768490453165,35.87291368,143.6,143.55,0.73214474]
[1768490454270,0.70846997,143.57,143.53,0.73214474]
[1768490454582,11.49944327,143.58,143.53,7.69904007]
[1768490455141,0.70846997,143.58,143.54,7.69874595]
[1768490455341,10.7909733,143.59,143.55,6.96620007]
[1768490455571,35.87291368,143.6,143.55,7.69834481]
[1768490455868,11.49944327,143.59,143.54,7.69867165]
[1768490456081,6.96475832,143.58,143.54,0.73214474]
[1768490456377,6.96475832,143.58,143.54,7.6988178]
[1768490456747,7.67290128,143.59,143.54,7.6988178]
[1768490456963,7.67290128,143.59,143.54,0.73214474]
[1768490457153,18.46387458,143.59,143.54,0.73214474]
[1768490457338,18.46387458,143.59,143.54,7.69869979]
[1768490457538,11.49944327,143.56,143.5,0.73214474]
[1768490457743,11.49944327,143.55,143.5,0.73214474]
[1768490457969,10.7909733,143.54,143.5,0.73214474]
[1768490458167,6.96703072,143.54,143.5,0.73214474]
[1768490458473,6.96703072,143.54,143.5,7.70071668]
[1768490458773,6.96703072,143.54,143.5,0.73214474]
[1768490459069,18.46647399,143.54,143.48,12.7]
[1768490459288,18.46647399,143.54,143.48,19.66930653]
[1768490459472,7.67550069,143.54,143.48,19.66930653]
[1768490459766,0.70846997,143.53,143.48,19.66930653]
[1768490460264,7.67594114,143.53,143.48,19.66930653]
[1768490460909,17.75844447,143.53,143.48,13.43214474]
[1768490461174,6.96747117,143.53,143.48,20.40147958]
[1768490461478,16.9856934,143.57,143.51,0.73214474]
[1768490461651,11.49944327,143.56,143.51,0.73214474]
[1768490462146,7.67419858,143.56,143.51,0.73214474]
[1768490462485,7.81596752,143.57,143.52,0.73214474]
[1768490462650,18.46477925,143.57,143.52,0.73214474]
[1768490462850,0.70846997,143.56,143.51,6.9680483]
[1768490463078,0.70846997,143.56,143.51,7.70019304]
[1768490463277,10.7909733,143.59,143.53,0.73214474]
[1768490463586,11.49944327,143.58,143.54,0.73214474]
[1768490464149,7.6736791,143.58,143.53,0.73214474]
[1768490464349,7.67339914,143.58,143.53,11.52311804]
[1768490464554,7.67339914,143.58,143.53,0.73214474]
[1768490464754,18.46437244,143.58,143.53,0.73214474]
[1768490464955,0.70846997,143.56,143.52,12.7]
[1768490465167,0.70846997,143.55,143.49,20.40084331]
[1768490465464,0.70846997,143.54,143.49,20.40084331]
[1768490465665,11.49944327,143.55,143.5,7.70078104]
[1768490465874,0.70846997,143.54,143.49,19.66892209]
[1768490466085,0.70846997,143.53,143.48,0.73214474]
[1768490466259,6.96767001,143.52,143.48,0.73214474]
[1768490466661,6.96767001,143.52,143.48,7.70165884]
[1768490467072,6.96767001,143.52,143.48,0.73214474]
[1768490467680,0.70846997,143.51,143.47,12.7]
[1768490468287,6.96767001,143.52,143.48,0.73214474]
[1768490468582,35.17781833,143.52,143.47,12.7]
[1768490468761,0.70846997,143.5,143.45,0.73214474]
[1768490468960,0.70846997,143.48,143.43,0.93214474]
[1768490469382,11.49944327,143.48,143.43,0.93214474]
[1768490469759,0.85063154,143.47,143.43,0.2]
[1768490470078,0.70846997,143.47,143.43,0.2]
[1768490470265,7.67859738,143.47,143.43,0.2]
[1768490470861,17.90264722,143.49,143.44,0.73214474]
[1768490471062,6.96876583,143.5,143.45,0.73214474]
[1768490471262,0.70846997,143.49,143.44,0.73214474]
[1768490471492,17.75973913,143.5,143.44,0.73214474]
[1768490472290,18.4682091,143.5,143.44,0.73214474]
[1768490472587,18.4682091,143.5,143.45,7.70321479]
[1768490472765,7.6772358,143.5,143.45,7.70321479]
[1768490472961,6.96849006,143.51,143.46,0.73214474]
[1768490473174,7.67696003,143.51,143.46,0.70214475]
[1768490473378,0.70846997,143.53,143.47,6.65874983]
[1768490473587,0.70846997,143.53,143.48,6.65874983]
[1768490473776,7.3672198,143.53,143.47,19.35874983]
[1768490473962,0.70846997,143.51,143.47,12.7]
[1768490474306,0.70846997,143.51,143.45,13.62981988]
[1768490474587,7.67701647,143.51,143.45,19.67107005]
[1768490474785,7.67701647,143.51,143.45,26.32981988]
[1768490475090,0.70846997,143.54,143.48,0.73214474]
[1768490475401,14.33391897,143.54,143.48,0.70214475]
[1768490475700,6.65874983,143.53,143.48,0.70214475]
[1768490475878,7.67516914,143.54,143.48,0.70214475]
[1768490476074,6.65874983,143.53,143.48,0.70214475]
[1768490476385,6.65874983,143.5,143.45,7.70321479]
[1768490476565,13.62690535,143.51,143.45,7.70321479]
[1768490477161,13.62690535,143.51,143.46,0.73214474]
[1768490477369,6.96815552,143.51,143.46,0.70214475]
[1768490477569,6.65874983,143.5,143.46,0.70214475]
[1768490478192,0.70846997,143.5,143.44,6.97147791]
[1768490478392,7.3672198,143.5,143.44,6.97147791]
[1768490478588,25.09701431,143.51,143.44,6.97147791]
[1768490478793,7.3672198,143.5,143.44,6.97147791]
[1768490479092,7.3672198,143.5,143.44,13.63022774]
[1768490479310,7.3672198,143.5,143.45,0.73214474]
[1768490479982,6.65874983,143.5,143.45,0.73214474]
[1768490480383,31.04729417,143.51,143.45,0.73214474]
[1768490480696,24.38854434,143.51,143.45,6.97064031]
[1768490480895,31.04729417,143.51,143.46,0.81886182]
[1768490481103,6.96815552,143.51,143.46,0.81886182]
[1768490481399,6.96776726,143.52,143.48,0.81886182]
[1768490481602,13.62651709,143.52,143.48,0.81886182]
[1768490481890,6.96776726,143.52,143.48,0.81886182]
[1768490482491,13.62601768,143.53,143.49,0.81886182]
[1768490482881,14.4127361,143.53,143.47,7.78885202]
[1768490483089,7.75398627,143.53,143.48,0.81886182]
[1768490483293,6.65874983,143.52,143.48,0.81886182]
[1768490483492,0.78671842,143.51,143.46,0.81886182]
[1768490483804,7.44546825,143.49,143.44,7.79014634]
[1768490484679,14.41476917,143.49,143.44,7.75295727]
[1768490485893,7.75601934,143.49,143.44,7.75295727]
[1768490486099,6.65874983,143.5,143.45,0.78167275]
[1768490486994,6.96864111,143.5,143.45,7.7526942]
[1768490487302,6.96864111,143.5,143.46,0.78167275]
[1768490488279,13.62706876,143.51,143.47,0.78167275]
[1768490488485,6.96831893,143.51,143.47,0.78167275]
[1768490488699,13.62706876,143.51,143.47,0.78167275]
[1768490488884,14.4308585,143.51,143.47,0.78167275]
[1768490489484,14.4308585,143.51,143.46,6.97055119]
[1768490489685,7.77210867,143.51,143.46,7.75222394]
[1768490489888,14.4308585,143.51,143.46,7.75222394]
[1768490490091,13.62650789,143.52,143.47,0.78167275]
[1768490490600,14.43029763,143.52,143.47,0.78167275]
[1768490491105,0.80378974,143.54,143.48,0.78167275]
[1768490491292,0.80378974,143.54,143.49,0.78167275]
[1768490491480,13.62496369,143.55,143.49,0.78167275]
[1768490491481,6.65874983,143.52,143.49,0.78167275]
[1768490491681,7.46253957,143.53,143.49,0.78167275]
[1768490491987,6.96621386,143.55,143.47,12.72]
[1768490491988,7.46253957,143.52,143.47,13.50167275]
[1768490492188,14.43069509,143.51,143.47,12.72]
[1768490493102,7.46253957,143.5,143.46,0.78167275]
[1768490493310,7.46253957,143.49,143.44,7.75301117]
[1768490493480,7.46253957,143.49,143.44,0.78167275]
[1768490493679,7.46253957,143.47,143.43,0.2]
[1768490493898,0.14216157,143.48,143.43,0.2]
[1768490493899,0.80378974,143.46,143.43,0.2]
[1768490494079,13.63017321,143.45,143.43,0.2]
[1768490494283,14.43396295,143.45,143.43,0.2]
[1768490494480,6.65874983,143.44,143.43,0.2]
[1768490494680,6.65874983,143.44,143.42,0.2]
[1768490494990,14.43396295,143.45,143.42,0.2]
[1768490495212,7.77521312,143.45,143.42,0.2]
[1768490496382,13.6290346,143.47,143.43,0.78167275]
[1768490496578,14.43228013,143.48,143.43,0.78167275]
[1768490496816,13.62849039,143.48,143.43,0.78167275]
[1768490497206,7.7735303,143.48,143.43,0.78167275]
[1768490497411,0.80378974,143.51,143.46,0.78167275]
[1768490497585,14.43086961,143.51,143.46,0.78167275]
[1768490498108,13.62660535,143.52,143.46,0.78167275]
[1768490498301,6.96785552,143.52,143.48,0.78167275]
[1768490498696,6.96720598,143.53,143.49,0.78167275]
[1768490499203,13.62595581,143.53,143.49,0.78167275]
[1768490499382,6.65874983,143.53,143.49,0.78167275]
[1768490499584,6.96698221,143.54,143.49,0.78167275]
[1768490499801,13.62573204,143.54,143.49,0.78167275]
[1768490499994,7.77040451,143.55,143.49,0.78167275]
[1768490500195,6.96661477,143.55,143.5,0.78167275]
[1768490500501,6.65874983,143.53,143.49,7.75073899]
[1768490500703,14.42915434,143.55,143.5,7.75007958]
[1768490500908,14.42915434,143.55,143.5,0.78167275]
[1768490501407,0.80378974,143.54,143.49,6.96897628]
[1768490501709,7.46253957,143.53,143.48,6.96959944]
[1768490501888,7.46253957,143.53,143.48,7.75127219]
[1768490502412,14.4301508,143.53,143.48,7.75127219]
[1768490502912,13.62636106,143.53,143.49,0.78167275]
[1768490503109,7.46253957,143.54,143.49,0.78167275]
[1768490503313,7.77054615,143.54,143.49,0.78167275]
[1768490503503,13.62515843,143.55,143.49,0.78167275]
[1768490503999,6.65874983,143.54,143.49,0.78167275]
[1768490504614,14.42957945,143.54,143.49,7.75031405]
[1768490505684,0.80378974,143.57,143.5,0.78167275]
[1768490505888,6.65874983,143.55,143.5,0.78167275]
[1768490506303,6.65874983,143.56,143.5,0.78167275]
[1768490506508,13.62457026,143.56,143.51,7.74982827]
[1768490507015,6.65874983,143.55,143.52,0.78167275]
[1768490507515,6.1478783,143.58,143.52,0.78167275]
[1768490507695,6.65874983,143.57,143.52,0.78167275]
[1768490508199,6.1478783,143.58,143.52,0.78167275]
[1768490508511,0.80378974,143.58,143.53,0.78167275]
[1768490508718,7.46253957,143.58,143.53,0.78167275]
[1768490509418,6.65874983,143.57,143.53,0.78167275]
[1768490509910,0.80378974,143.56,143.52,0.78167275]
[1768490510304,25.18054993,143.58,143.53,0.78167275]
[1768490510624,6.65874983,143.57,143.53,0.78167275]
[1768490510787,13.62417443,143.57,143.53,0.78167275]
[1768490511291,14.47999499,143.57,143.53,0.78167275]
[1768490512314,14.47999499,143.57,143.53,7.74879819]
[1768490512905,13.62357799,143.58,143.54,0.92063028]
[1768490513294,13.62357799,143.58,143.53,6.96712544]
[1768490513295,0.85582056,143.57,143.53,6.96712544]
[1768490513498,3.46368276,143.57,143.53,6.96712544]
[1768490514018,3.46368276,143.57,143.53,7.88775572]
[1768490514415,78.52959006,143.59,143.54,0.92063028]
[1768490514615,2.6078622,143.58,143.54,0.92063028]
[1768490515692,2.6078622,143.58,143.54,7.88732435]
[1768490516414,2.6078622,143.58,143.54,0.92063028]
[1768490516623,3.46368276,143.58,143.54,0.92063028]
[1768490517510,0.85582056,143.56,143.52,0.92063028]
[1768490517721,3.46368276,143.53,143.49,7.88972513]
[1768490517893,2.6078622,143.54,143.49,7.88972513]
[1768490518222,2.6078622,143.54,143.5,0.92063028]
[1768490518515,3.46368276,143.55,143.5,0.92063028]
[1768490518893,6.96669917,143.54,143.5,0.92063028]
[1768490519700,9.57456137,143.54,143.5,0.92063028]
[1768490520321,9.57456137,143.54,143.5,7.88915902]
[1768490520893,10.42998588,143.55,143.5,6.96852874]
[1768490521097,2.6078622,143.57,143.52,0.92063028]
[1768490521302,2.6078622,143.56,143.52,0.92063028]
[1768490521625,2.6078622,143.55,143.5,20.58915902]
[1768490522004,2.6078622,143.55,143.51,0.92063028]
[1768490522210,7.82124991,143.57,143.51,3.52849248]
[1768490522416,30.25340782,143.59,143.51,3.52849248]
[1768490522417,9.57282689,143.58,143.52,0.92063028]
[1768490522721,0.85582056,143.56,143.52,0.92063028]
[1768490522907,2.6078622,143.56,143.52,7.88807891]
[1768490523107,7.82134342,143.57,143.52,7.88807891]
[1768490523444,6.96475938,143.58,143.53,0.92063028]
[1768490523600,9.57262158,143.58,143.53,0.92063028]